[Event "Titled Tuesday Blitz November 01 Early 2022"]
[White "Mitrovic, Darko R"]
[Black "Malyi, Viacheslav"]
[WhiteFideId "927023"]
[BlackFideId "14123983"]
[WhiteElo "2150"]
[BlackElo "2291"]
[Result "1/2-1/2"]
[Round "04"]
[TimeControl "180+1"]
[Date "2022.11.02"]
[WhiteClock "0:00:16"]
[BlackClock "0:00:18"]

1. d4 {[%clk 0:03:00]}  d5 {[%clk 0:02:58]} 2. c4 {[%clk 0:03:01]}  c6 {[%clk 0:02:59]} 3. Nf3 {[%clk 0:03:01]}  Nf6 {[%clk 0:02:59]} 4. e3 {[%clk 0:03:01]}  Bg4 {[%clk 0:02:56]} 5. Nbd2 {[%clk 0:02:59]}  e6 {[%clk 0:02:54]} 6. Be2 {[%clk 0:02:58]}  Nbd7 {[%clk 0:02:53]} 7. O-O {[%clk 0:02:57]}  Bd6 {[%clk 0:02:51]} 8. h3 {[%clk 0:02:57]}  Bh5 {[%clk 0:02:51]} 9. Qc2 {[%clk 0:02:55]}  Bg6 {[%clk 0:02:48]} 10. Bd3 {[%clk 0:02:54]}  O-O {[%clk 0:02:46]} 11. e4 {[%clk 0:02:51]}  dxe4 {[%clk 0:02:46]} 12. Nxe4 {[%clk 0:02:51]}  Nxe4 {[%clk 0:02:46]} 13. Bxe4 {[%clk 0:02:50]}  Qc7 {[%clk 0:02:30]} 14. Bxg6 {[%clk 0:02:46]}  hxg6 {[%clk 0:02:31]} 15. Be3 {[%clk 0:02:46]}  e5 {[%clk 0:02:27]} 16. dxe5 {[%clk 0:02:28]}  Nxe5 {[%clk 0:02:28]} 17. Nxe5 {[%clk 0:02:27]}  Bxe5 {[%clk 0:02:29]} 18. Rad1 {[%clk 0:02:27]}  Rfd8 {[%clk 0:01:56]} 19. b3 {[%clk 0:02:21]}  Bh2+ {[%clk 0:01:55]} 20. Kh1 {[%clk 0:02:20]}  Bf4 {[%clk 0:01:55]} 21. Qe4 {[%clk 0:02:13]}  Bxe3 {[%clk 0:01:49]} 22. Qxe3 {[%clk 0:02:13]}  Re8 {[%clk 0:01:48]} 23. Qf3 {[%clk 0:02:08]}  Re7 {[%clk 0:01:44]} 24. Rfe1 {[%clk 0:02:00]}  Rae8 {[%clk 0:01:43]} 25. Rxe7 {[%clk 0:01:59]}  Qxe7 {[%clk 0:01:44]} 26. g3 {[%clk 0:01:58]}  Qe2 {[%clk 0:01:39]} 27. Qxe2 {[%clk 0:01:45]}  Rxe2 {[%clk 0:01:40]} 28. Kg2 {[%clk 0:01:45]}  Kf8 {[%clk 0:01:14]} 29. Rd7 {[%clk 0:01:34]}  Re7 {[%clk 0:01:15]} 30. Rd8+ {[%clk 0:01:33]}  Re8 {[%clk 0:01:15]} 31. Rd7 {[%clk 0:01:30]}  Re7 {[%clk 0:01:16]} 32. Rd8+ {[%clk 0:01:31]}  Re8 {[%clk 0:01:14]} 33. Rxe8+ {[%clk 0:01:31]}  Kxe8 {[%clk 0:01:13]} 34. Kf3 {[%clk 0:01:31]}  Ke7 {[%clk 0:01:14]} 35. Ke4 {[%clk 0:01:31]}  Kd6 {[%clk 0:01:10]} 36. b4 {[%clk 0:01:29]}  a5 {[%clk 0:01:02]} 37. a3 {[%clk 0:01:28]}  axb4 {[%clk 0:00:59]} 38. axb4 {[%clk 0:01:27]}  b6 {[%clk 0:00:57]} 39. h4 {[%clk 0:01:22]}  Ke6 {[%clk 0:00:49]} 40. f3 {[%clk 0:01:13]}  Kd6 {[%clk 0:00:48]} 41. Kd4 {[%clk 0:01:00]}  Ke6 {[%clk 0:00:42]} 42. Ke4 {[%clk 0:00:59]}  Kd6 {[%clk 0:00:42]} 43. g4 {[%clk 0:00:57]}  Ke6 {[%clk 0:00:41]} 44. f4 {[%clk 0:00:49]}  f5+ {[%clk 0:00:40]} 45. gxf5+ {[%clk 0:00:43]}  gxf5+ {[%clk 0:00:40]} 46. Kd4 {[%clk 0:00:42]}  Kd6 {[%clk 0:00:29]} 47. c5+ {[%clk 0:00:40]}  bxc5+ {[%clk 0:00:28]} 48. bxc5+ {[%clk 0:00:40]}  Ke6 {[%clk 0:00:28]} 49. Kc4 {[%clk 0:00:39]}  Kf6 {[%clk 0:00:25]} 50. Kb4 {[%clk 0:00:23]}  Ke6 {[%clk 0:00:25]} 51. Kc4 {[%clk 0:00:20]}  Kf6 {[%clk 0:00:23]} 52. Kd4 {[%clk 0:00:17]}  Ke6 {[%clk 0:00:18]} 53. Kc4 {[%clk 0:00:16]} 1/2-1/2


[Site "https://www.chess.com"]

[Event "Titled Tuesday Blitz November 01 Early 2022"]
[White "Myshakov, Fyodor"]
[Black "Al Hosani, Omran"]
[WhiteFideId "14111284"]
[BlackFideId "9308733"]
[WhiteElo "2310"]
[BlackElo "2167"]
[Result "1-0"]
[Round "04"]
[TimeControl "180+1"]
[Date "2022.11.02"]
[WhiteClock "0:01:01"]
[BlackClock "0:00:04"]

1. c4 {[%clk 0:02:59]}  e5 {[%clk 0:02:59]} 2. Nc3 {[%clk 0:03:00]}  Nf6 {[%clk 0:02:59]} 3. Nf3 {[%clk 0:03:00]}  Nc6 {[%clk 0:02:59]} 4. g3 {[%clk 0:03:00]}  d5 {[%clk 0:02:59]} 5. cxd5 {[%clk 0:03:00]}  Nxd5 {[%clk 0:03:00]} 6. Nxd5 {[%clk 0:03:00]}  Qxd5 {[%clk 0:03:00]} 7. d3 {[%clk 0:03:01]}  Be6 {[%clk 0:02:56]} 8. Bg2 {[%clk 0:03:01]}  Qd7 {[%clk 0:02:56]} 9. O-O {[%clk 0:03:01]}  Bh3 {[%clk 0:02:55]} 10. Bd2 {[%clk 0:03:00]}  O-O-O {[%clk 0:02:52]} 11. Bc3 {[%clk 0:03:00]}  Bxg2 {[%clk 0:02:51]} 12. Kxg2 {[%clk 0:03:01]}  f6 {[%clk 0:02:52]} 13. Qa4 {[%clk 0:02:59]}  Kb8 {[%clk 0:02:51]} 14. b4 {[%clk 0:02:58]}  h5 {[%clk 0:02:47]} 15. h4 {[%clk 0:02:56]}  g5 {[%clk 0:02:40]} 16. b5 {[%clk 0:02:56]}  Nd4 {[%clk 0:02:36]} 17. Bxd4 {[%clk 0:02:51]}  exd4 {[%clk 0:02:37]} 18. Rac1 {[%clk 0:02:42]}  Bd6 {[%clk 0:02:26]} 19. Qxd4 {[%clk 0:02:37]}  Qxb5 {[%clk 0:02:22]} 20. Rb1 {[%clk 0:02:35]}  Qa6 {[%clk 0:02:19]} 21. Qc4 {[%clk 0:02:22]}  Qxc4 {[%clk 0:01:49]} 22. dxc4 {[%clk 0:02:23]}  g4 {[%clk 0:01:49]} 23. Ne1 {[%clk 0:02:08]}  Rhe8 {[%clk 0:01:44]} 24. Rb2 {[%clk 0:02:08]}  Ba3 {[%clk 0:01:41]} 25. Rc2 {[%clk 0:02:07]}  Re4 {[%clk 0:01:24]} 26. Nd3 {[%clk 0:02:04]}  Rde8 {[%clk 0:01:23]} 27. Nf4 {[%clk 0:02:00]}  Bd6 {[%clk 0:01:21]} 28. Nxh5 {[%clk 0:01:59]}  Rxe2 {[%clk 0:01:21]} 29. Rxe2 {[%clk 0:01:57]}  Rxe2 {[%clk 0:01:22]} 30. Nxf6 {[%clk 0:01:57]}  Rxa2 {[%clk 0:01:19]} 31. h5 {[%clk 0:01:55]}  Kc8 {[%clk 0:01:12]} 32. Re1 {[%clk 0:01:54]}  b5 {[%clk 0:01:03]} 33. Re8+ {[%clk 0:01:46]}  Kb7 {[%clk 0:01:03]} 34. cxb5 {[%clk 0:01:46]}  Bc5 {[%clk 0:01:00]} 35. Nxg4 {[%clk 0:01:45]}  Ra4 {[%clk 0:00:57]} 36. Rg8 {[%clk 0:01:44]}  Rb4 {[%clk 0:00:56]} 37. h6 {[%clk 0:01:42]}  Rxb5 {[%clk 0:00:55]} 38. f4 {[%clk 0:01:37]}  Bd4 {[%clk 0:00:48]} 39. Rg5 {[%clk 0:01:34]}  Rb2+ {[%clk 0:00:30]} 40. Kf3 {[%clk 0:01:33]}  c5 {[%clk 0:00:26]} 41. Ke4 {[%clk 0:01:29]}  a5 {[%clk 0:00:24]} 42. Rh5 {[%clk 0:01:22]}  a4 {[%clk 0:00:24]} 43. Ne5 {[%clk 0:01:16]}  a3 {[%clk 0:00:12]} 44. h7 {[%clk 0:01:15]}  a2 {[%clk 0:00:11]} 45. h8=Q {[%clk 0:01:08]}  Re2+ {[%clk 0:00:11]} 46. Kd5 {[%clk 0:01:06]}  a1=Q {[%clk 0:00:06]} 47. Rh7+ {[%clk 0:01:05]}  Ka6 {[%clk 0:00:04]} 48. Qa8+ {[%clk 0:01:02]}  Kb5 {[%clk 0:00:04]} 49. Rb7# {[%clk 0:01:01]} 1-0


[Site "https://www.chess.com"]

[Event "Titled Tuesday Blitz November 01 Early 2022"]
[White "Nurmanova, Alua"]
[Black "Zilleruelo Irizarry, Diego"]
[WhiteFideId "13729390"]
[BlackFideId "3101460"]
[WhiteElo "2088"]
[BlackElo "1998"]
[Result "0-1"]
[Round "04"]
[TimeControl "180+1"]
[Date "2022.11.02"]
[WhiteClock "0:00:17"]
[BlackClock "0:00:10"]

1. e4 {[%clk 0:03:00]}  c6 {[%clk 0:02:59]} 2. d4 {[%clk 0:03:00]}  d5 {[%clk 0:03:00]} 3. e5 {[%clk 0:03:00]}  c5 {[%clk 0:02:59]} 4. dxc5 {[%clk 0:02:59]}  e6 {[%clk 0:02:59]} 5. a3 {[%clk 0:03:00]}  Bxc5 {[%clk 0:02:59]} 6. Qg4 {[%clk 0:02:58]}  Ne7 {[%clk 0:02:58]} 7. Bd3 {[%clk 0:02:56]}  g6 {[%clk 0:02:54]} 8. Nf3 {[%clk 0:02:55]}  h5 {[%clk 0:02:54]} 9. Qf4 {[%clk 0:02:52]}  Nf5 {[%clk 0:02:46]} 10. b4 {[%clk 0:02:49]}  Be7 {[%clk 0:02:42]} 11. Bxf5 {[%clk 0:02:18]}  gxf5 {[%clk 0:02:41]} 12. O-O {[%clk 0:02:13]}  Nd7 {[%clk 0:02:14]} 13. Bb2 {[%clk 0:01:58]}  Nf8 {[%clk 0:02:14]} 14. Nbd2 {[%clk 0:01:51]}  Ng6 {[%clk 0:02:14]} 15. Qd4 {[%clk 0:01:51]}  Bd7 {[%clk 0:02:11]} 16. c4 {[%clk 0:01:49]}  dxc4 {[%clk 0:01:53]} 17. Nxc4 {[%clk 0:01:50]}  Bb5 {[%clk 0:01:47]} 18. Rfc1 {[%clk 0:01:22]}  Qxd4 {[%clk 0:01:45]} 19. Bxd4 {[%clk 0:01:23]}  Bc6 {[%clk 0:01:22]} 20. Ne1 {[%clk 0:01:08]}  Rg8 {[%clk 0:01:05]} 21. f3 {[%clk 0:00:59]}  h4 {[%clk 0:01:01]} 22. Kf2 {[%clk 0:00:54]}  Nf4 {[%clk 0:01:01]} 23. Rab1 {[%clk 0:00:46]}  Rd8 {[%clk 0:00:57]} 24. Bxa7 {[%clk 0:00:45]}  Nd3+ {[%clk 0:00:41]} 25. Nxd3 {[%clk 0:00:44]}  Rxd3 {[%clk 0:00:42]} 26. Rd1 {[%clk 0:00:37]}  Rc3 {[%clk 0:00:41]} 27. Rbc1 {[%clk 0:00:37]}  Rb3 {[%clk 0:00:41]} 28. Rc2 {[%clk 0:00:31]}  h3 {[%clk 0:00:30]} 29. Na5 {[%clk 0:00:22]}  Rxg2+ {[%clk 0:00:19]} 30. Ke1 {[%clk 0:00:20]}  Rxa3 {[%clk 0:00:10]} 31. Rxg2 {[%clk 0:00:18]}  hxg2 {[%clk 0:00:10]} 32. Bf2 {[%clk 0:00:18]}  Bxf3 {[%clk 0:00:09]} 33. Rc1 {[%clk 0:00:17]}  Bxb4+ {[%clk 0:00:10]} 0-1


[Site "https://www.chess.com"]

[Event "Titled Tuesday Blitz November 01 Early 2022"]
[White "Orozbaev, Eldiar"]
[Black "Jaskolka, Tomasz"]
[WhiteFideId "13802240"]
[BlackFideId "1170791"]
[WhiteElo "2244"]
[BlackElo "2126"]
[Result "1-0"]
[Round "04"]
[TimeControl "180+1"]
[Date "2022.11.02"]
[WhiteClock "0:02:21"]
[BlackClock "0:01:07"]

1. e4 {[%clk 0:02:54]}  c5 {[%clk 0:03:00]} 2. c3 {[%clk 0:02:54]}  Nf6 {[%clk 0:02:56]} 3. e5 {[%clk 0:02:54]}  Nd5 {[%clk 0:02:57]} 4. d4 {[%clk 0:02:55]}  cxd4 {[%clk 0:02:56]} 5. cxd4 {[%clk 0:02:56]}  e6 {[%clk 0:02:57]} 6. Nf3 {[%clk 0:02:56]}  d6 {[%clk 0:02:58]} 7. Nc3 {[%clk 0:02:57]}  Nxc3 {[%clk 0:02:57]} 8. bxc3 {[%clk 0:02:58]}  Qc7 {[%clk 0:02:57]} 9. Bd2 {[%clk 0:02:57]}  Nd7 {[%clk 0:02:58]} 10. Bd3 {[%clk 0:02:57]}  b6 {[%clk 0:02:58]} 11. O-O {[%clk 0:02:57]}  Bb7 {[%clk 0:02:58]} 12. Re1 {[%clk 0:02:57]}  Be7 {[%clk 0:02:59]} 13. Be4 {[%clk 0:02:56]}  Bxe4 {[%clk 0:02:58]} 14. Rxe4 {[%clk 0:02:57]}  d5 {[%clk 0:02:58]} 15. Rg4 {[%clk 0:02:57]}  g6 {[%clk 0:02:58]} 16. Rc1 {[%clk 0:02:57]}  b5 {[%clk 0:02:58]} 17. Bg5 {[%clk 0:02:58]}  Nb6 {[%clk 0:02:56]} 18. Rf4 {[%clk 0:02:56]}  Rc8 {[%clk 0:02:46]} 19. h4 {[%clk 0:02:51]}  h6 {[%clk 0:02:42]} 20. Bf6 {[%clk 0:02:50]}  Bxf6 {[%clk 0:02:43]} 21. Rxf6 {[%clk 0:02:51]}  b4 {[%clk 0:02:36]} 22. Nd2 {[%clk 0:02:36]}  bxc3 {[%clk 0:02:34]} 23. Nb3 {[%clk 0:02:37]}  O-O {[%clk 0:01:58]} 24. Nc5 {[%clk 0:02:35]}  Kg7 {[%clk 0:01:54]} 25. Rxc3 {[%clk 0:02:34]}  Qe7 {[%clk 0:01:53]} 26. Rg3 {[%clk 0:02:34]}  Nd7 {[%clk 0:01:49]} 27. Nxe6+ {[%clk 0:02:33]}  Kh8 {[%clk 0:01:31]} 28. Qd2 {[%clk 0:02:23]}  Nxf6 {[%clk 0:01:08]} 29. Qxh6+ {[%clk 0:02:20]}  Nh7 {[%clk 0:01:07]} 30. Qg7# {[%clk 0:02:21]} 1-0


[Site "https://www.chess.com"]

[Event "Titled Tuesday Blitz November 01 Early 2022"]
[White "Ozdemir, Serhan Berat"]
[Black "Hoffmann, Asa"]
[WhiteFideId "6374611"]
[BlackFideId "2001470"]
[WhiteElo "2016"]
[BlackElo "2117"]
[Result "1-0"]
[Round "04"]
[TimeControl "180+1"]
[Date "2022.11.02"]
[WhiteClock "0:00:12"]
[BlackClock "0:00:13"]

1. e4 {[%clk 0:03:00]}  d6 {[%clk 0:02:57]} 2. d4 {[%clk 0:02:56]}  Nf6 {[%clk 0:02:56]} 3. Nc3 {[%clk 0:02:56]}  c6 {[%clk 0:02:51]} 4. Nf3 {[%clk 0:02:56]}  Bg4 {[%clk 0:02:50]} 5. Be2 {[%clk 0:02:52]}  e6 {[%clk 0:02:50]} 6. Be3 {[%clk 0:02:43]}  d5 {[%clk 0:02:49]} 7. e5 {[%clk 0:02:42]}  Nfd7 {[%clk 0:02:49]} 8. Ng5 {[%clk 0:02:35]}  Bf5 {[%clk 0:02:47]} 9. g4 {[%clk 0:02:30]}  Bg6 {[%clk 0:02:46]} 10. Bd3 {[%clk 0:02:23]}  Be7 {[%clk 0:02:37]} 11. h4 {[%clk 0:02:21]}  O-O {[%clk 0:02:32]} 12. Ne2 {[%clk 0:01:50]}  c5 {[%clk 0:02:29]} 13. c3 {[%clk 0:01:49]}  cxd4 {[%clk 0:02:29]} 14. cxd4 {[%clk 0:01:49]}  Nc6 {[%clk 0:02:27]} 15. a3 {[%clk 0:01:11]}  Rc8 {[%clk 0:02:09]} 16. Nf4 {[%clk 0:01:09]}  Bxd3 {[%clk 0:01:54]} 17. Qxd3 {[%clk 0:01:09]}  g6 {[%clk 0:01:54]} 18. Nf3 {[%clk 0:00:39]}  Qb6 {[%clk 0:01:47]} 19. Rb1 {[%clk 0:00:33]}  Qa6 {[%clk 0:01:46]} 20. Qd1 {[%clk 0:00:29]}  Na5 {[%clk 0:01:44]} 21. h5 {[%clk 0:00:29]}  Nc4 {[%clk 0:01:42]} 22. hxg6 {[%clk 0:00:29]}  fxg6 {[%clk 0:01:41]} 23. O-O {[%clk 0:00:05]}  Rf7 {[%clk 0:01:35]} 24. Qd3 {[%clk 0:00:02]}  Rcf8 {[%clk 0:01:16]} 25. b3 {[%clk 0:00:03]}  Nxe3 {[%clk 0:01:13]} 26. Qxa6 {[%clk 0:00:04]}  bxa6 {[%clk 0:01:11]} 27. fxe3 {[%clk 0:00:05]}  g5 {[%clk 0:01:02]} 28. Nxe6 {[%clk 0:00:05]}  Rxf3 {[%clk 0:01:02]} 29. Nxf8 {[%clk 0:00:05]}  Rxf1+ {[%clk 0:01:01]} 30. Kxf1 {[%clk 0:00:05]}  Bxf8 {[%clk 0:01:01]} 31. b4 {[%clk 0:00:04]}  Nb6 {[%clk 0:01:00]} 32. Ke2 {[%clk 0:00:04]}  Kf7 {[%clk 0:00:58]} 33. Rf1+ {[%clk 0:00:03]}  Ke7 {[%clk 0:00:57]} 34. Rf6 {[%clk 0:00:03]}  Bg7 {[%clk 0:00:46]} 35. Rc6 {[%clk 0:00:04]}  h6 {[%clk 0:00:41]} 36. Rg6 {[%clk 0:00:03]}  Bf8 {[%clk 0:00:39]} 37. Rf6 {[%clk 0:00:01]}  Ke8 {[%clk 0:00:36]} 38. Kd3 {[%clk 0:00:02]}  Bg7 {[%clk 0:00:31]} 39. Re6+ {[%clk 0:00:02]}  Kf7 {[%clk 0:00:30]} 40. Rc6 {[%clk 0:00:02]}  Bf8 {[%clk 0:00:30]} 41. Rc7+ {[%clk 0:00:03]}  Be7 {[%clk 0:00:29]} 42. Rxa7 {[%clk 0:00:04]}  Nc4 {[%clk 0:00:28]} 43. Rxa6 {[%clk 0:00:04]}  h5 {[%clk 0:00:27]} 44. gxh5 {[%clk 0:00:04]}  g4 {[%clk 0:00:28]} 45. Rg6 {[%clk 0:00:05]}  Nxa3 {[%clk 0:00:23]} 46. b5 {[%clk 0:00:04]}  Nxb5 {[%clk 0:00:21]} 47. Rxg4 {[%clk 0:00:05]}  Nc7 {[%clk 0:00:20]} 48. h6 {[%clk 0:00:06]}  Bf8 {[%clk 0:00:17]} 49. Rf4+ {[%clk 0:00:04]}  Kg8 {[%clk 0:00:17]} 50. h7+ {[%clk 0:00:05]}  Kxh7 {[%clk 0:00:16]} 51. Rxf8 {[%clk 0:00:05]}  Ne6 {[%clk 0:00:16]} 52. Re8 {[%clk 0:00:05]}  Ng7 {[%clk 0:00:15]} 53. Rd8 {[%clk 0:00:05]}  Kg6 {[%clk 0:00:15]} 54. Rxd5 {[%clk 0:00:06]}  Nf5 {[%clk 0:00:15]} 55. Rd6+ {[%clk 0:00:07]}  Kg7 {[%clk 0:00:14]} 56. Ke4 {[%clk 0:00:06]}  Nxd6+ {[%clk 0:00:14]} 57. exd6 {[%clk 0:00:07]}  Kf7 {[%clk 0:00:14]} 58. Kd5 {[%clk 0:00:08]}  Ke8 {[%clk 0:00:14]} 59. Kc6 {[%clk 0:00:09]}  Kd8 {[%clk 0:00:14]} 60. e4 {[%clk 0:00:10]}  Kc8 {[%clk 0:00:14]} 61. e5 {[%clk 0:00:11]}  Kd8 {[%clk 0:00:14]} 62. d5 {[%clk 0:00:11]}  Ke8 {[%clk 0:00:14]} 63. e6 {[%clk 0:00:10]}  Kd8 {[%clk 0:00:14]} 64. d7 {[%clk 0:00:10]}  Ke7 {[%clk 0:00:13]} 65. Kc7 {[%clk 0:00:11]}  Kf6 {[%clk 0:00:13]} 66. d8=Q+ {[%clk 0:00:12]} 1-0


[Site "https://www.chess.com"]

[Event "Titled Tuesday Blitz November 01 Early 2022"]
[White "Pakleza, Zbigniew"]
[Black "Amgalantengis, Enkh-Amgalan"]
[WhiteFideId "1119290"]
[BlackFideId "4903536"]
[WhiteElo "2411"]
[BlackElo "1772"]
[Result "1/2-1/2"]
[Round "04"]
[TimeControl "180+1"]
[Date "2022.11.02"]
[WhiteClock "0:00:07"]
[BlackClock "0:00:12"]

1. d4 {[%clk 0:03:00]}  Nf6 {[%clk 0:02:59]} 2. Nf3 {[%clk 0:03:01]}  e6 {[%clk 0:02:57]} 3. Bf4 {[%clk 0:03:01]}  d5 {[%clk 0:02:56]} 4. e3 {[%clk 0:03:01]}  Bd6 {[%clk 0:02:57]} 5. Bg3 {[%clk 0:03:02]}  O-O {[%clk 0:02:57]} 6. Nbd2 {[%clk 0:03:02]}  c5 {[%clk 0:02:57]} 7. c3 {[%clk 0:03:03]}  Qc7 {[%clk 0:02:57]} 8. Be2 {[%clk 0:03:03]}  Nbd7 {[%clk 0:02:58]} 9. c4 {[%clk 0:03:03]}  b6 {[%clk 0:02:52]} 10. Rc1 {[%clk 0:03:02]}  Re8 {[%clk 0:02:52]} 11. O-O {[%clk 0:02:42]}  Bxg3 {[%clk 0:02:51]} 12. hxg3 {[%clk 0:02:43]}  Bb7 {[%clk 0:02:51]} 13. cxd5 {[%clk 0:02:39]}  exd5 {[%clk 0:02:48]} 14. dxc5 {[%clk 0:02:36]}  bxc5 {[%clk 0:02:48]} 15. Qa4 {[%clk 0:02:28]}  Bc6 {[%clk 0:02:45]} 16. Qa3 {[%clk 0:02:13]}  Qb6 {[%clk 0:02:44]} 17. Nb3 {[%clk 0:02:00]}  d4 {[%clk 0:02:39]} 18. e4 {[%clk 0:01:20]}  Nxe4 {[%clk 0:02:35]} 19. Rfe1 {[%clk 0:01:10]}  Rac8 {[%clk 0:02:14]} 20. Ba6 {[%clk 0:00:59]}  Bb7 {[%clk 0:02:12]} 21. Bxb7 {[%clk 0:00:55]}  Qxb7 {[%clk 0:02:13]} 22. Na5 {[%clk 0:00:50]}  Qd5 {[%clk 0:02:09]} 23. Nc4 {[%clk 0:00:47]}  Ra8 {[%clk 0:01:52]} 24. Qd3 {[%clk 0:00:37]}  h6 {[%clk 0:01:49]} 25. Re2 {[%clk 0:00:24]}  Nd6 {[%clk 0:01:47]} 26. Rec2 {[%clk 0:00:21]}  Nxc4 {[%clk 0:01:46]} 27. Rxc4 {[%clk 0:00:22]}  Rad8 {[%clk 0:01:38]} 28. b4 {[%clk 0:00:16]}  Rc8 {[%clk 0:01:20]} 29. bxc5 {[%clk 0:00:10]}  Rxc5 {[%clk 0:01:20]} 30. Qxd4 {[%clk 0:00:04]}  Qxd4 {[%clk 0:01:18]} 31. Nxd4 {[%clk 0:00:05]}  Rd5 {[%clk 0:01:17]} 32. Nc6 {[%clk 0:00:04]}  Re2 {[%clk 0:01:16]} 33. a4 {[%clk 0:00:02]}  Rdd2 {[%clk 0:01:12]} 34. Rf4 {[%clk 0:00:01]}  a6 {[%clk 0:01:01]} 35. Rf1 {[%clk 0:00:01]}  Ra2 {[%clk 0:00:58]} 36. Rd4 {[%clk 0:00:01]}  Nc5 {[%clk 0:00:55]} 37. a5 {[%clk 0:00:02]}  Nb3 {[%clk 0:00:53]} 38. Rd8+ {[%clk 0:00:02]}  Kh7 {[%clk 0:00:53]} 39. Rd7 {[%clk 0:00:03]}  Nxa5 {[%clk 0:00:51]} 40. Nxa5 {[%clk 0:00:03]}  Rxa5 {[%clk 0:00:52]} 41. Rxf7 {[%clk 0:00:03]}  Rae5 {[%clk 0:00:50]} 42. Rc1 {[%clk 0:00:02]}  Re1+ {[%clk 0:00:51]} 43. Rxe1 {[%clk 0:00:02]}  Rxe1+ {[%clk 0:00:51]} 44. Kh2 {[%clk 0:00:03]}  Ra1 {[%clk 0:00:52]} 45. Ra7 {[%clk 0:00:04]}  Ra2 {[%clk 0:00:52]} 46. f4 {[%clk 0:00:04]}  h5 {[%clk 0:00:51]} 47. Kh3 {[%clk 0:00:04]}  Ra1 {[%clk 0:00:50]} 48. Kh4 {[%clk 0:00:04]}  Kh6 {[%clk 0:00:49]} 49. g4 {[%clk 0:00:04]}  hxg4 {[%clk 0:00:46]} 50. Kxg4 {[%clk 0:00:05]}  Ra5 {[%clk 0:00:42]} 51. g3 {[%clk 0:00:05]}  g6 {[%clk 0:00:41]} 52. Ra8 {[%clk 0:00:05]}  Ra3 {[%clk 0:00:37]} 53. Ra7 {[%clk 0:00:04]}  a5 {[%clk 0:00:29]} 54. Kh4 {[%clk 0:00:03]}  a4 {[%clk 0:00:29]} 55. g4 {[%clk 0:00:01]}  g5+ {[%clk 0:00:29]} 56. fxg5+ {[%clk 0:00:02]}  Kg6 {[%clk 0:00:29]} 57. Ra6+ {[%clk 0:00:03]}  Kg7 {[%clk 0:00:29]} 58. Ra7+ {[%clk 0:00:03]}  Kg6 {[%clk 0:00:29]} 59. Ra6+ {[%clk 0:00:04]}  Kg7 {[%clk 0:00:29]} 60. g6 {[%clk 0:00:05]}  Rb3 {[%clk 0:00:22]} 61. Kh5 {[%clk 0:00:05]}  Rb5+ {[%clk 0:00:18]} 62. g5 {[%clk 0:00:04]}  Rb1 {[%clk 0:00:14]} 63. Ra7+ {[%clk 0:00:04]}  Kg8 {[%clk 0:00:14]} 64. Rxa4 {[%clk 0:00:05]}  Rh1+ {[%clk 0:00:14]} 65. Kg4 {[%clk 0:00:05]}  Rg1+ {[%clk 0:00:14]} 66. Kf5 {[%clk 0:00:05]}  Rf1+ {[%clk 0:00:14]} 67. Rf4 {[%clk 0:00:06]}  Rb1 {[%clk 0:00:13]} 68. Kg4 {[%clk 0:00:05]}  Kg7 {[%clk 0:00:13]} 69. Kh5 {[%clk 0:00:04]}  Rh1+ {[%clk 0:00:12]} 70. Rh4 {[%clk 0:00:04]}  Rg1 {[%clk 0:00:10]} 71. Rh3 {[%clk 0:00:03]}  Rg2 {[%clk 0:00:10]} 72. Rc3 {[%clk 0:00:03]}  Rh2+ {[%clk 0:00:10]} 73. Kg4 {[%clk 0:00:03]}  Kxg6 {[%clk 0:00:10]} 74. Rc6+ {[%clk 0:00:04]}  Kg7 {[%clk 0:00:10]} 75. Rc7+ {[%clk 0:00:04]}  Kg6 {[%clk 0:00:11]} 76. Rc6+ {[%clk 0:00:05]}  Kg7 {[%clk 0:00:11]} 77. Kg3 {[%clk 0:00:06]}  Rh1 {[%clk 0:00:11]} 78. Kg4 {[%clk 0:00:06]}  Rg1+ {[%clk 0:00:10]} 79. Kf5 {[%clk 0:00:06]}  Rf1+ {[%clk 0:00:11]} 80. Kg4 {[%clk 0:00:06]}  Rg1+ {[%clk 0:00:11]} 81. Kh5 {[%clk 0:00:06]}  Rh1+ {[%clk 0:00:12]} 82. Kg4 {[%clk 0:00:07]}  Rg1+ {[%clk 0:00:12]} 1/2-1/2


[Site "https://www.chess.com"]

[Event "Titled Tuesday Blitz November 01 Early 2022"]
[White "Parligras, Mircea-Emilian"]
[Black "Khalakhan, Jurij"]
[WhiteFideId "1204297"]
[BlackFideId "14142368"]
[WhiteElo "2507"]
[BlackElo "2208"]
[Result "1-0"]
[Round "04"]
[TimeControl "180+1"]
[Date "2022.11.02"]
[WhiteClock "0:00:28"]
[BlackClock "0:01:10"]

1. d4 {[%clk 0:03:00]}  d5 {[%clk 0:02:59]} 2. c4 {[%clk 0:03:00]}  c6 {[%clk 0:02:59]} 3. Nc3 {[%clk 0:03:00]}  Nf6 {[%clk 0:03:00]} 4. e3 {[%clk 0:02:59]}  Bf5 {[%clk 0:02:59]} 5. Qb3 {[%clk 0:02:59]}  Bc8 {[%clk 0:02:43]} 6. Nf3 {[%clk 0:02:57]}  e6 {[%clk 0:02:42]} 7. Qc2 {[%clk 0:02:45]}  Be7 {[%clk 0:02:40]} 8. b3 {[%clk 0:02:43]}  Nbd7 {[%clk 0:02:40]} 9. Bb2 {[%clk 0:02:43]}  a6 {[%clk 0:02:38]} 10. Bd3 {[%clk 0:02:41]}  b5 {[%clk 0:02:38]} 11. O-O {[%clk 0:02:37]}  bxc4 {[%clk 0:02:37]} 12. bxc4 {[%clk 0:02:36]}  O-O {[%clk 0:02:38]} 13. e4 {[%clk 0:02:18]}  dxe4 {[%clk 0:02:31]} 14. Nxe4 {[%clk 0:02:18]}  h6 {[%clk 0:02:27]} 15. Rfe1 {[%clk 0:01:41]}  a5 {[%clk 0:02:23]} 16. Rad1 {[%clk 0:01:38]}  Ba6 {[%clk 0:02:21]} 17. Ne5 {[%clk 0:01:36]}  Qc7 {[%clk 0:02:19]} 18. Re3 {[%clk 0:01:29]}  Kh8 {[%clk 0:01:54]} 19. Rh3 {[%clk 0:01:23]}  Nxe4 {[%clk 0:01:52]} 20. Bxe4 {[%clk 0:01:22]}  Nxe5 {[%clk 0:01:52]} 21. dxe5 {[%clk 0:01:22]}  Rad8 {[%clk 0:01:47]} 22. Bd3 {[%clk 0:01:05]}  Bc5 {[%clk 0:01:30]} 23. Qe2 {[%clk 0:01:01]}  Bd4 {[%clk 0:01:20]} 24. Qe4 {[%clk 0:01:01]}  g6 {[%clk 0:01:12]} 25. Bxd4 {[%clk 0:01:00]}  c5 {[%clk 0:01:13]} 26. Rxh6+ {[%clk 0:00:58]}  Kg7 {[%clk 0:01:13]} 27. Be3 {[%clk 0:00:57]}  Bb7 {[%clk 0:01:12]} 28. Qf4 {[%clk 0:00:53]}  Qe7 {[%clk 0:01:13]} 29. Rh3 {[%clk 0:00:49]}  Rh8 {[%clk 0:01:13]} 30. Rxh8 {[%clk 0:00:47]}  Rxh8 {[%clk 0:01:14]} 31. Bf1 {[%clk 0:00:44]}  Rh4 {[%clk 0:01:13]} 32. Qf6+ {[%clk 0:00:43]}  Qxf6 {[%clk 0:01:13]} 33. exf6+ {[%clk 0:00:44]}  Kxf6 {[%clk 0:01:14]} 34. Bxc5 {[%clk 0:00:44]}  Ba6 {[%clk 0:01:13]} 35. Rd4 {[%clk 0:00:42]}  Rh5 {[%clk 0:01:12]} 36. Bd6 {[%clk 0:00:40]}  Rf5 {[%clk 0:01:11]} 37. c5 {[%clk 0:00:37]}  Bb7 {[%clk 0:01:12]} 38. Rf4 {[%clk 0:00:36]}  Bc6 {[%clk 0:01:10]} 39. Rxf5+ {[%clk 0:00:33]}  Kxf5 {[%clk 0:01:09]} 40. Bd3+ {[%clk 0:00:33]}  Kf6 {[%clk 0:01:08]} 41. f4 {[%clk 0:00:33]}  g5 {[%clk 0:01:08]} 42. g3 {[%clk 0:00:33]}  gxf4 {[%clk 0:01:08]} 43. gxf4 {[%clk 0:00:33]}  Kg7 {[%clk 0:01:06]} 44. Kf2 {[%clk 0:00:32]}  f6 {[%clk 0:01:07]} 45. h4 {[%clk 0:00:32]}  Kf7 {[%clk 0:01:08]} 46. h5 {[%clk 0:00:32]}  f5 {[%clk 0:01:09]} 47. Be5 {[%clk 0:00:31]}  Kg8 {[%clk 0:01:09]} 48. Ke3 {[%clk 0:00:30]}  Kh7 {[%clk 0:01:09]} 49. Be2 {[%clk 0:00:30]}  Kh6 {[%clk 0:01:10]} 50. Bf3 {[%clk 0:00:30]}  Bd7 {[%clk 0:01:08]} 51. c6 {[%clk 0:00:30]}  Bc8 {[%clk 0:01:08]} 52. c7 {[%clk 0:00:29]}  a4 {[%clk 0:01:09]} 53. Kd4 {[%clk 0:00:29]}  a3 {[%clk 0:01:10]} 54. Kc5 {[%clk 0:00:28]} 1-0


[Site "https://www.chess.com"]